Cogmind - Beta 13 @@@ ROGUE MODE // 2024.03.04 @ 21:10:54 Player: rCartos Result: Destroyed by G-47 Trooper with Particle Gun Performance ------------- Evolutions (0) 0 Regions Visited (1) 200 Robots Destroyed (5) 25 Value Destroyed (56) 56 Prototype IDs (0) 0 Alien Tech Used (0) 0 Bonus (0) 0 TOTAL SCORE: 281 Bonus ------- None Cogmind --------- Core Integrity 0/250 Matter 300/300 Energy 100/100 System Corruption 0% Temperature Cool (9) Movement Core (50) Location -10/Materials Parts ------- > --- POWER (1) -------- (None) > --- PROPULSION (2) --- (None) > --- UTILITY (2) ------ (None) > --- WEAPON (2) ------- (None) > --- INVENTORY (5) ---- Improved Terrain Scanner Mining Laser Peak State ------------ > --- POWER ------------ Light Ion Engine > --- PROPULSION ------- Wheel Wheel > --- UTILITY ---------- Medium Matter Pod Seismic Detector > --- WEAPON ----------- Small Laser Small Laser > --- INVENTORY -------- Assault Rifle [Rating: 7] Favorites ----------- Power Light Ion Engine Engine Light Ion Engine Propulsion Wheel Wheel Wheel Utility Medium Matter Pod Device Seismic Detector Storage Medium Matter Pod Weapon Small Laser Energy Gun Small Laser Ballistic Gun Assault Rifle Special Weapon Mining Laser Build | -11 -10 ------- Run | Yrd Mat Slots Evolved . | . . Power . | . . Propulsion . | . . Utility . | . . Weapon . | . . Parts Attached 10 | 9 1 Power 1 | 1 . Engine 1 | 1 . Core . | . . Reactor . | . . Propulsion 2 | 2 . Treads . | . . Leg . | . . Wheel 2 | 2 . Hover . | . . Flight . | . . Utility 2 | 2 . Device 1 | 1 . Storage 1 | 1 . Processor . | . . Hackware . | . . Protection . | . . Artifact . | . . Weapon 5 | 4 1 Energy Gun 3 | 3 . Energy Cannon . | . . Ballistic Gun 1 | . 1 Ballistic Cannon . | . . Launcher . | . . Special Weapon 1 | 1 . Impact Weapon . | . . Slashing Weapon . | . . Piercing Weapon . | . . Special Melee Weapon . | . . Unidentified Prototypes . | . . Parts Lost 7 | . 7 Power 1 | . 1 Propulsion 2 | . 2 Utility 2 | . 2 Weapon 2 | . 2 Highest Loss Streak 6 | . 6 To Critical Strikes . | . . Average Slot Usage (%) 55 | . 55 Engine 6 | . 6 Wheel 17 | . 17 Device 7 | . 7 Storage 7 | . 7 Energy Gun 6 | . 6 Ballistic Gun 2 | . 2 Special Weapon 5 | . 5 Naked Turns 52 | . 52 Heaviest Build 9 | 8 9 Greatest Support 20 | 20 20 Greatest Overweight (x) . | . . Average Overweight (x) . | . . Largest Inventory Capacity 5 | 5 5 Average Capacity 5 | 5 5 Most Carried 5 | 5 2 Average Carried 2 | 2 2 Final Capacity 5 | 5 5 Final Carried 2 | 2 2 Class Distribution -------------------- 100% | Mutant Dominant Class ---------------- Mutant | -10/Materials Resources | -11 -10 ----------- Run | Yrd Mat Matter Collected 328 | 328 . Remotely . | . . Salvage Created 143 | 143 . Parts 15 | 15 . Haulers Intercepted . | . . Recyclers Shooed . | . . Parts Field Recycled . | . . Retrieved Matter . | . . Parts Self-Destructed . | . . Prevented . | . . Kills | -11 -10 ------- Run | Yrd Mat Combat Hostiles Destroyed 1 | 1 . Guns 1 | 1 . Classes Destroyed 3 | 3 . Worker 1 | 1 . Tunneler 3 | 3 . Grunt 1 | 1 . Best Kill Streak 4 | 4 . Combat Bots Only 1 | 1 . Max Kills in Single Turn 2 | 2 . Gunslinging . | . . Exploded . | . . Melee . | . . Uniques/NPCs Destroyed . | . . Combat | -11 -10 -------- Run | Yrd Mat Hostile Shots Fired 67 | 1 66 Missed 19 | 1 18 Damage Taken 644 | . 644 Core 256 | . 256 Absorbed by Shields . | . . Core Remaining (%) 100 | 100 . Volleys Fired 23 | 6 17 Largest 2 | 2 2 Hottest 80 | 80 60 Shots Fired 34 | 10 24 Gun 34 | 10 24 Cannon . | . . Launcher . | . . Special . | . . Kinetic 12 | . 12 Thermal 18 | 6 12 Explosive . | . . Electromagnetic 4 | 4 . Robot Hit Streak 4 | 4 4 Robot Miss Streak 3 | 2 3 Penetration Max . | . . Secondary Targets . | . . Shots Hit Robots 19 | 5 14 Core Hits 11 | 6 5 Critical Kills . | . . Critical Parts Destroyed . | . . Critical Strikes . | . . Melee Attacks . | . . Impact . | . . Slashing . | . . Piercing . | . . Sneak Attacks . | . . Combat Hostiles . | . . Follow-up Attacks . | . . Damage Inflicted 264 | 70 194 Guns 234 | 70 164 Cannons . | . . Explosions . | . . Melee . | . . Ramming 30 | . 30 Kinetic 99 | . 99 Thermal 99 | 34 65 Explosive . | . . Electromagnetic 36 | 36 . Impact . | . . Slashing . | . . Piercing . | . . Highest Corruption . | . . Average Corruption . | . . Corruption Purged . | . . Corruption Blocked . | . . Overload Shots . | . . Overflow Damage . | . . Projectiles . | . . Explosions . | . . Melee . | . . Knockbacks . | . . Impact . | . . Kinetic . | . . Secondary . | . . Self-Inflicted Damage 14 | . 14 Shots . | . . Rammed 6 | . 6 Targets Rammed 6 | . 6 Kicked . | . . Crushed . | . . Highest Temperature 84 | 54 84 Average Temperature 36 | 25 40 Received Heat Transfer 372 | . 372 Siege Activations . | . . Robots Corrupted . | . . Combat Hostiles . | . . Parts Fried . | . . Impact Corruptions . | . . Robots Melted . | . . Combat Hostiles . | . . Parts Melted . | . . Heat Transferred 225 | 75 150 Parts Sabotaged . | . . Parts Stolen . | . . Parts Stripped . | . . Power Chain Reactions . | . . Alert | -11 -10 ------- Run | Yrd Mat Peak Influence 40 | 40 26 Initial 26 | . 26 Average 13 | 14 12 Maximum Alert Level . | . . Low Security (%) 100 | 100 100 Level 1 . | . . Level 2 . | . . Level 3 . | . . Level 4 . | . . Level 5 . | . . High Security . | . . Max Security . | . . Squads Dispatched . | . . Investigation . | . . Extermination . | . . Reinforcement . | . . Assault . | . . Garrison . | . . Intercept . | . . Searches Triggered . | . . Construction Impeded . | . . Haulers Reinforced . | . . Active Scanning Responses . | . . Cargo Convoy Interrupts . | . . Stealth | -11 -10 --------- Run | Yrd Mat Distress Signals 1 | . 1 Communications Jammed . | . . Distress Signals . | . . Times Spotted 6 | 1 5 Peak Tracking Total 4 | 1 4 Tactical Retreats . | . . Traps | -11 -10 ------- Run | Yrd Mat Traps Triggered . | . . Indirectly . | . . Trap Hack Attempts . | . . Triggered . | . . Disarmed . | . . Reprogrammed . | . . Reused . | . . Traps Extracted . | . . Installed . | . . Triggered . | . . Machines | -11 -10 ---------- Run | Yrd Mat Machines Disabled . | . . Max in Single Turn . | . . Machines Repaired . | . . Machines Dismantled . | . . Machines Sabotaged . | . . Overloaded Fab Kills . | . . Hacking | -11 -10 --------- Run | Yrd Mat Machines Accessed 2 | . 2 Terminals 2 | . 2 Fabricators . | . . Repair Stations . | . . Recycling Units . | . . Scanalyzers . | . . Garrison Access . | . . Total Hacks 6 | . 6 Successful 3 | . 3 Failed 3 | . 3 Catastrophic 1 | . 1 Database Lockouts . | . . Manual . | . . Terminals 6 | . 6 Fabricators . | . . Repair Stations . | . . Recycling Units . | . . Scanalyzers . | . . Garrison Access . | . . Terminal Hacks 3 | . 3 Record 1 | . 1 Alert Level 2 | . 2 Fabricator Hacks . | . . Repair Station Hacks . | . . Recycling Unit Hacks . | . . Scanalyzer . | . . Garrison Access Hacks . | . . Unauthorized Hacks . | . . Terminals . | . . Fabricators . | . . Repair Stations . | . . Recycling Units . | . . Scanalyzers . | . . Garrison Access . | . . Data Cores Recovered . | . . Used . | . . Hacking Detections 2 | . 2 Full Trace Events 1 | . 1 Feedback Events . | . . Feedback Blocked . | . . Robot Schematics Acquired . | . . Robots Built . | . . Authchips . | . . Time . | . . Total Robot Build Rating . | . . Part Schematics Acquired . | . . Parts Built . | . . Authchips . | . . Time . | . . Total Part Build Rating . | . . Parts Repaired . | . . Time . | . . Parts Recycled . | . . Recycled Matter . | . . Retrieved Matter . | . . Retrieved Components . | . . Parts Scanalyzed . | . . Part Schematics Acquired . | . . Parts Damaged . | . . Bothacking | -11 -10 ------------ Run | Yrd Mat Used RIF Installer . | . . Robots Hacked . | . . Non-combat . | . . Combat . | . . Robot Hacks Applied . | . . Relay Couplers Released . | . . Fabnet Peak Effective % . | . . Robots Rewired . | . . Allies Hacked . | . . Hacks Repelled . | . . Allies | -11 -10 -------- Run | Yrd Mat Total Allies . | . . Largest Group . | . . Highest-Rated Group . | . . Highest-Rated Ally . | . . Total Orders . | . . Ally Attacks . | . . Total Damage . | . . Kills . | . . Allies Corrupted . | . . Allies Melted . | . . Intel | -11 -10 ------- Run | Yrd Mat Robot Analysis Total . | . . Derelict Logs Recovered . | . . Drone Launches . | . . Drone Recoveries . | . . Exploration | -11 -10 ------------- Run | Yrd Mat Turns Passed 387 | 132 255 Spaces Moved 405 | 121 284 Core 122 | 30 92 Treads . | . . Legs . | . . Wheels 283 | 91 192 Hover . | . . Flight . | . . Fastest Speed 50 | 50 50 Average Speed 70 | 72 70 Slowest Speed 80 | 80 80 Overloaded Moves . | . . Propulsion Burnouts . | . . Robots Hopped . | . . Cave-ins Triggered . | . . Exploration Rate (%) 20 | 7 34 Regions Visited 1 Branch Regions . Pre-discovered Areas . | . . Known Exits Taken . | . . Unknown Exits Taken 1 | 1 . Scrap Searched . | . . Spaces Dug . | . . Terrain Destroyed . | . . Melee . | . . Projectile . | . . AOE . | . . Terrain Rammed . | . . Walls Destroyed . | . . Machines Disabled . | . . Actions | -11 -10 --------- Run | Yrd Mat Total 472 | 157 315 Wait 8 | 1 7 Move 404 | 120 284 Hop . | . . Pick Up 15 | 15 . Fast Attach . | . . Attach 8 | 8 . Detach . | . . Swap 2 | 1 1 Drop 6 | 6 . Fire 23 | 6 17 Melee . | . . Ram 6 | . 6 Kick . | . . Crush . | . . Escape Stasis . | . . Rewire . | . . Trap . | . . Miscellaneous . | . . Route ------- -11/Scrapyard -10/Materials History --------- Turn | Location | Event 2 | -11/Scrapyard | Met Revision 17 80 | -11/Scrapyard | Discovered new exit (range 8) 133 | -11/Scrapyard | Entered Materials 261 | -10/Materials | Core integrity fell below 50% 306 | -10/Materials | Build established: Mutant 306 | -10/Materials | Lost 6 parts (1p1n2u2w) 346 | -10/Materials | Core integrity fell below 20% 388 | -10/Materials | Destroyed by G-47 Trooper with Particle Gun Last Messages --------------- K-01 Serf collects debris. Slammed into K-01 Serf. Connecting with Terminal... >>Query(Mines) Deep underground areas newly excavated to provide access to raw materials for processing in the lower levels of [Complex 0b10]. Initially the mining tunnels only rarely experienced hostile [Derelict] activity, not enough to justify allocating significant resources to defense. This has recently changed with the [Infestation], for which the current response is to dispatch garrisoned Demolishers until a more permanent solution can be put in place. Matter Filter disabled. Slammed into K-01 Serf. K-01 Serf sends out distress signal. Slammed into K-01 Serf. [Achievement: First Step to Greatness] Map ----- +----------------------------------------------------+ | ?????????????????????????????????????????????????? | | ?????????????????????????????????????????????????? | | ?????????????????????????????????????????????????? | | ?????????????????????????????????????????????????? | | ?????????????????????????????????????????????????? | | ?????????????????????????????????????????????????? | | ?????????????????????????????????????????????????? | | ???????????????????????????????????#####?????????? | | ???????????????????????????????????#"""#?????????? | | ???????????????????????????????????#"T"#?????????? | | ??????????????????????????????????##" "######????? | | ??????????????????????????######??# #????? | | ??????????????????????????# #### """"""" #????? | | ??????????????????????????# + + """"""" #????? | | ??????????????????????????# # ## """"""" #????? | | ??????????????????????????# # ## """"""" #????? | | ??????????????????????????# # ## """%""" #????? | | ??????????????????????????# # ## #????? | | ???????????????????###????# # ## #????? | | ??????????????????##!!!???# + ######/########## | | ??????????????????#! ???# # #???# + | | ??????????????????# ??###+## ##### # | | ???????????###+#### ????# % %% + | | ?????????? ???# ######## # % | | ?????????? ####u#??????# # | | ?????????? t k @ % #??????# # | | ?????????????????##### ######??????# # | | ?????????????????????# ????????????+ # | | ?????????????????????# g???????????? # ##/###### | | ?????????????????????# ??????????? # ###??? | | ????????????????????? ??????????? ?# #??? | | ???????????????????? g??????????###?# #??? | | ??????????????????? ???????????????# #??? | | ??????????????????####?????########### ##+#+###? | | ???????????????????????????# # # #? | | ???????????????????????????# """ """ # # #? | | ???????????????????????????# """ """ # # #? | | ???????????????????????????# """ """ + # #? | | ???????????????????????????# """ """ # # #? | | ???????????????????????????# """ """ # # #? | | ???????????????????????????# # ########? | | ???????????????????????????# # ######### | | ???????????????????????????########### # | | ?????????????????????????????????????# # | | ?????????????????????????????????????# # | | ?????????????????????????????????????# # | | ?????????????????????????????????????# + | | ?????????????????????????????????????# # | | ?????????????????????????????????????# # | | ?????????????????????????????????????# # | +----------------------------------------------------+ Best States ------------- Heat Dissipation 25 Energy Generation 10 Energy Capacity 125 Matter Stores 400 Matter Capacity 400 Sight Range 16 Terrain Scan Density 10 Evasion (%) 50 Item Schematics ----------------- None Robot Schematics ------------------ None Fabricated ------------ Nothing Alien Tech Used ----------------- None Achievements -------------- First Step to Greatness Challenges ------------ None Game ------ Seed AntimatterGatlingRifle Manual? 0 Play Time 00:19:38 Cumulative 0.5 hours Start 2024.03.04 @ 20:52:14 End 2024.03.04 @ 21:10:54 Sessions 1 Manual Loads 0 Difficulty Rogue Special Mode None Game No. 1 Rogue 1 Adventurer 0 Explorer 0 Win Type - Total 0 Types 0/0/0/0/0/0/0/0/0 Lore% 0 Gallery% 0 Achievement% 0 Wizard Run 0 Options --------- Layout 1 ASCII 0 Keyboard 0 Movement Arrows Keybinds 0 Fullscreen 1 Font 16/Terminus Map View 25x20 Zoom Use 88% Tactical HUD 0 Map Filters NONE Filters NONE Steam 1 RUN: 40b7d546-3720-4fbc-a92e-254aff69f8db